bitfinex-derivatives/quotes_ETHF0:USTF0_20250923
["timestamp","ask_amount","ask_price","bid_price","bid_amount"]
[1758595949133,1.40337362,4157.2,4157.1,3.634]
[1758595949329,1.18853,4156.8,4156.7,0.4262]
[1758595949530,1.40342362,4156.8,4156.7,0.974]
[1758595950029,1.40322956,4156.8,4156.7,0.974]
[1758595951232,1.40322956,4156.8,4156.7,0.2085]
[1758595951528,0.7146,4156.7,4156.6,3.2078]
[1758595951735,0.92929956,4156.7,4156.6,3.6697]
[1758595952840,0.92929956,4156.7,4156.6,0.244]
[1758595953529,1.36192956,4156.7,4156.6,0.244]
[1758595953833,1.36192956,4156.7,4156.6,0.681]
[1758595954837,1.36192956,4156.7,4156.6,0.4619]
[1758595955442,1.36192956,4156.7,4156.6,0.244]
[1758595955832,0.94479,4156.2,4156.1,0.7529]
[1758595956034,0.94479,4156.2,4156.1,0.9969]
[1758595956541,0.94479,4156.2,4156.1,41.7969]
[1758595956938,0.3088,4156.2,4156.1,41.7969]
[1758595957342,0.43267,4156.3,4156.1,41.7969]
[1758595957541,0.13,4156.5,4156.4,0.7529]
[1758595957542,0.43266,4156.5,4156.4,0.7529]
[1758595957843,1.15952962,4156.5,4156.4,0.9969]
[1758595958144,1.49202962,4156.5,4156.4,0.9969]
[1758595958334,1.49202962,4156.5,4156.4,0.2179]
[1758595958535,1.49202962,4156.5,4156.4,0.4619]
[1758595958843,0.21476962,4156.5,4156.4,2.34562591]
[1758595961044,0.72686962,4156.5,4156.4,0.9969]
[1758595961346,1.05936962,4156.5,4156.4,0.681]
[1758595962345,1.05936962,4156.5,4156.4,0.9969]
[1758595965445,1.07123747,4156.5,4156.4,0.9969]
[1758595966048,0.94123747,4156.5,4156.4,0.9969]
[1758595967739,1.07123747,4156.5,4156.4,0.9969]
[1758595968448,1.07123747,4156.5,4156.4,0.681]
[1758595969148,1.07123747,4156.5,4156.4,0.4619]
[1758595973042,1.07123747,4156.5,4156.4,0.2179]
[1758595973350,1.07123747,4156.5,4156.4,0.4619]
[1758595974054,1.07123747,4156.5,4156.4,0.244]
[1758595974454,1.07123747,4156.5,4156.4,0.4619]
[1758595975549,0.86873747,4156.5,4156.4,0.9969]
[1758595975753,1.07123747,4156.5,4156.4,0.9969]
[1758595976254,0.73873747,4156.5,4156.4,0.9969]
[1758595977155,0.22663747,4156.5,4156.4,0.9969]
[1758595977546,0.53543747,4156.5,4156.4,0.9969]
[1758595979259,0.73873747,4156.5,4156.4,0.9969]
[1758595980550,1.37002007,4156.5,4156.4,0.9969]
[1758595980855,1.69888025,4156.5,4156.4,0.9969]
[1758595981051,1.69888025,4156.5,4156.1,40.8]
[1758595981263,0.43268,4156.2,4156.1,40.8]
[1758595981553,0.43268,4156.2,4156.1,41.365]
[1758595981554,0.55533747,4156.2,4156.1,41.365]
[1758595982452,1.17499,4156.1,4156.0,3.2078]
[1758595982758,1.17501,4155.9,4155.8,0.2226]
[1758595982953,1.40164747,4155.9,4155.8,41.2666]
[1758595983153,1.40164747,4155.9,4155.8,41.5876]
[1758595984255,1.40164747,4155.9,4155.5,3.5288]
[1758595984462,1.17504,4155.6,4155.5,3.4518]
[1758595984659,1.40167747,4155.6,4155.5,0.244]
[1758595984955,1.17509,4155.1,4155.0,3.4304]
[1758595985159,1.40172747,4155.1,4155.0,3.6744]
[1758595985856,1.40172747,4155.1,4155.0,4.2025]
[1758595986047,1.40172747,4155.1,4155.0,3.4304]
[1758595986249,1.40172747,4155.1,4155.0,3.2078]
[1758595987558,0.8686,4155.0,4154.9,0.244]
[1758595987860,1.09523747,4155.0,4154.9,0.244]
[1758595988063,0.7423,4154.5,4154.4,3.9585]
[1758595988262,0.96893747,4154.5,4154.4,4.2025]
[1758595988861,1.09523747,4154.5,4154.4,4.2025]
[1758595991168,0.22663747,4154.5,4154.4,4.2025]
[1758595992063,0.55533747,4154.5,4154.4,4.2025]
[1758595992459,0.75963747,4154.5,4154.4,4.2025]
[1758595992860,0.96893747,4154.5,4154.4,4.2025]
[1758595994762,1.09523747,4154.5,4154.4,4.2025]
[1758595997868,1.09523747,4154.5,4154.4,3.4304]
[1758595998168,1.09523747,4154.5,4154.4,3.6744]
[1758595998763,0.7589,4154.2,4154.1,0.59132345]
[1758595998968,0.98553747,4154.2,4154.1,0.83532345]
[1758595999269,0.98553747,4154.2,4154.1,0.59132345]
[1758595999468,1.41842747,4154.2,4154.1,0.83532345]
[1758595999665,1.41842747,4154.2,4154.1,0.37952345]
[1758595999864,1.41842747,4154.2,4153.8,44.0078]
[1758595999865,1.19182,4153.9,4153.8,3.2078]
[1758596000069,0.7589,4153.7,4153.6,0.244]
[1758596000272,1.19187,4153.4,4153.3,3.953]
[1758596000466,1.19187,4153.4,4153.3,4.197]
[1758596000771,1.19187,4153.4,4153.3,44.997]
[1758596001270,1.19187,4153.4,4153.3,44.4249]
[1758596001465,1.42247411,4153.4,4153.3,44.6689]
[1758596001864,1.42247411,4153.4,4153.3,4.197]
[1758596002764,1.42247411,4153.4,4153.3,3.953]
[1758596002961,1.42247411,4153.4,4153.3,3.8689]
[1758596003362,1.42247411,4153.4,4153.3,4.197]
[1758596003773,1.42247411,4153.4,4153.3,3.953]
[1758596003962,1.42247411,4153.4,4153.3,4.197]
[1758596004569,0.23060411,4153.4,4153.3,4.197]
[1758596004880,0.23060411,4153.4,4153.3,5.36441586]
[1758596005279,0.43292,4153.9,4153.3,5.36441586]
[1758596005464,0.43295,4153.6,4153.5,0.1217]
[1758596005667,0.98662115,4153.6,4153.5,0.9892]
[1758596005866,0.66332115,4153.6,4153.5,0.9892]
[1758596006063,0.66332115,4153.6,4153.5,1.1109]
[1758596006474,0.23037115,4153.6,4153.5,1.1109]
[1758596006666,0.23037115,4153.6,4153.5,2.27831586]
[1758596006868,0.23037115,4153.6,4153.2,3.5359]
[1758596006869,2.15668701,4153.6,4153.2,3.5359]
[1758596007064,2.15668701,4153.6,4151.0,0.1217]
[1758596007065,0.3233,4151.4,4150.7,0.3281]
[1758596007269,0.2244,4150.7,4150.6,3.2078]
[1758596007471,0.2244,4150.7,4150.2,0.3281]
[1758596007472,0.7589,4150.7,4150.2,0.3281]
[1758596007674,0.8907,4150.5,4150.4,0.02399999]
[1758596007866,1.13266982,4150.5,4150.4,0.44109999]
[1758596008067,0.78966982,4150.5,4150.4,0.76919999]
[1758596008380,2.30008568,4150.5,4150.4,0.44109999]
[1758596008575,1.13266982,4150.5,4150.4,0.44109999]
[1758596009372,4.34046982,4150.5,4150.4,0.23579999]
[1758596009575,4.34046982,4150.5,4150.4,0.76919999]
[1758596009971,4.34046982,4150.5,4150.4,0.44109999]
[1758596010166,4.34046982,4150.5,4150.4,0.68609999]
[1758596011373,4.34046982,4150.5,4150.4,1.00909999]
[1758596011573,0.24196982,4150.5,4150.4,1.00909999]
[1758596011779,3.2078,4151.3,4151.2,0.437]
[1758596011982,0.2411225,4151.3,4151.2,1.005]
[1758596012279,0.2411225,4151.3,4151.2,41.805]
[1758596012673,0.2411225,4151.3,4151.2,41.82899999]
[1758596013880,0.337,4152.0,4151.3,0.323]
[1758596014177,4.06988,4152.4,4152.3,0.2181]
[1758596014377,4.06988,4152.4,4152.3,0.437]
[1758596014784,4.40688,4152.4,4152.3,0.46099999]
[1758596015980,4.40688,4152.4,4152.3,0.02399999]
[1758596016788,0.43317,4151.5,4151.4,0.2181]
[1758596016981,1.32887,4151.5,4151.4,0.2181]
[1758596017976,0.86219,4151.3,4151.1,40.8]
[1758596018174,1.32893,4151.0,4150.9,0.437]
[1758596018377,1.32893,4151.0,4150.1,0.4333]
[1758596018378,0.1297,4150.5,4149.9,3.9678]
[1758596018685,0.99228,4150.4,4150.3,0.437]
[1758596018881,0.99228,4150.4,4150.3,0.684]
[1758596019084,1.19928,4150.4,4150.3,0.4651]
[1758596019276,0.766,4150.4,4150.3,0.684]
[1758596019477,0.766,4150.4,4150.3,1.007]
[1758596020279,0.337,4150.4,4150.3,1.007]
[1758596020882,0.337,4150.9,4150.3,1.007]
[1758596021082,0.222,4150.7,4150.6,0.2181]
[1758596021379,0.766,4150.7,4150.6,0.2181]
[1758596023492,0.337,4150.9,4150.8,0.437]
[1758596023785,0.559,4150.9,4150.8,0.437]
[1758596023987,0.766,4150.9,4150.8,0.437]
[1758596024486,0.766,4150.7,4150.6,0.247]
[1758596025488,0.222,4150.1,4150.0,41.123]
[1758596025678,0.99232,4150.1,4150.0,41.37]
[1758596025884,1.23059287,4150.1,4150.0,41.047]
[1758596027398,1.23059287,4150.1,4150.0,40.8]
[1758596027603,1.23059287,4150.1,4150.0,41.047]
[1758596028197,1.32908,4149.5,4149.4,3.2078]
[1758596028400,1.56735287,4149.5,4149.4,3.2078]
[1758596028599,1.56735287,4149.5,4149.4,44.2259]
[1758596028809,1.13397287,4149.5,4149.4,44.2259]
[1758596029199,1.13397287,4149.5,4149.4,41.0181]
[1758596029397,1.13442616,4149.5,4149.4,41.0181]
[1758596030000,1.13442616,4149.5,4149.4,41.2651]
[1758596030202,1.13442616,4149.5,4149.4,41.0181]
[1758596030398,1.13442616,4149.5,4149.4,41.2651]
[1758596031095,1.13442616,4149.5,4149.4,41.5881]
[1758596031299,1.75842398,4149.5,4149.4,41.5881]
[1758596031606,0.23872616,4149.5,4149.4,41.5881]
[1758596032004,0.23872616,4149.5,4149.4,41.0181]
[1758596032005,0.70542616,4149.5,4149.4,41.0181]
[1758596032209,0.70542616,4149.5,4149.4,41.2651]
[1758596032398,1.32951221,4149.5,4149.4,41.2651]
[1758596033694,0.86281221,4149.5,4149.4,41.5881]
[1758596033899,0.23872616,4149.5,4149.4,49.0369]
[1758596034308,0.559,4150.0,4149.9,0.437]
[1758596034506,0.559,4150.0,4149.9,1.007]
[1758596034804,0.62466472,4150.0,4149.9,1.007]
[1758596036301,0.96166472,4150.0,4149.9,1.007]
[1758596037003,3.2078,4151.1,4149.9,8.03267632]
[1758596037306,0.559,4150.3,4150.2,1.1933]
[1758596037494,0.559,4150.3,4150.2,1.4403]
[1758596037697,0.559,4150.3,4150.2,0.684]
[1758596037894,0.559,4150.3,4149.9,3.64114]
[1758596037895,0.766,4150.3,4149.9,3.64114]
[1758596038094,0.559,4149.5,4149.4,41.23339]
[1758596038308,0.6887,4149.5,4149.4,41.48039]
[1758596038505,0.6887,4149.5,4149.4,41.047]
[1758596038703,0.6887,4149.5,4149.3,3.2078]
[1758596038910,0.766,4149.4,4149.3,3.2078]
[1758596039114,0.766,4149.4,4149.3,3.4548]
[1758596039305,0.766,4149.4,4149.3,44.2548]
[1758596039507,0.766,4149.4,4149.3,3.4548]
[1758596039807,0.766,4149.4,4149.3,3.6729]
[1758596040009,0.766,4148.8,4148.7,44.0078]
[1758596040210,0.766,4148.8,4148.7,3.6729]
[1758596040608,0.43339,4149.4,4148.9,1.18444]
[1758596040910,0.9867,4149.3,4149.2,0.751]
[1758596041103,1.1961,4149.3,4149.2,0.4509]
[1758596041299,0.43346,4148.7,4148.2,3.2078]
[1758596041498,0.1267,4149.0,4148.2,3.2078]
[1758596041499,0.7627,4148.3,4148.2,3.4548]
[1758596041701,0.7627,4148.3,4148.2,3.6587]
[1758596042001,5.00377,4148.3,4148.2,3.2078]
[1758596042199,0.8894,4148.0,4147.9,0.02410888]
[1758596042802,0.8894,4148.0,4147.9,0.22800888]
[1758596043006,0.8894,4148.0,4147.9,0.02410888]
[1758596043305,0.43349,4148.4,4148.3,0.751]
[1758596043306,0.2166,4148.4,4148.3,0.751]
[1758596043508,0.2166,4148.4,4148.3,0.6608]
[1758596043509,0.426,4148.4,4148.3,0.6608]
[1758596043818,3.5445,4148.5,4148.4,0.751]
[1758596044020,4.0972,4148.5,4148.4,0.2039]
[1758596044510,3.8878,4149.0,4148.9,0.43344]
[1758596044711,3.5445,4149.0,4148.9,1.43244]
[1758596044902,3.2078,4149.0,4148.9,1.43244]
[1758596045105,0.3367,4149.8,4149.7,0.3372]
[1758596045301,0.3367,4149.8,4149.7,0.248]
[1758596045613,0.3367,4150.0,4149.9,0.3372]
[1758596045811,0.3367,4150.0,4149.7,0.248]
[1758596046010,0.3367,4149.8,4149.5,0.248]
[1758596046218,0.2359398,4149.7,4149.5,0.248]
[1758596046513,0.5726398,4149.6,4149.5,0.68138]
[1758596046713,0.5726398,4149.6,4149.5,0.5852]
[1758596046912,0.5726398,4149.6,4149.5,0.248]
[1758596047110,0.2359398,4149.6,4149.5,48.668]
[1758596047422,0.3367,4150.7,4150.3,0.43329]
[1758596047710,0.1267,4150.5,4150.3,0.43329]
[1758596047913,0.1267,4150.5,4150.2,0.68129]
[1758596048117,0.1267,4150.5,4150.2,0.248]
[1758596048410,0.3367,4150.4,4150.2,0.6813]
[1758596048618,0.1267,4150.5,4150.2,0.6813]
[1758596048921,0.3367,4150.4,4150.2,0.6813]
[1758596049109,0.95710922,4150.3,4150.2,0.6813]
[1758596049416,0.3367,4150.3,4150.2,0.6813]
[1758596049612,3.2078,4150.3,4149.5,44.44117]
[1758596049806,0.1267,4150.0,4149.5,44.0078]
[1758596050117,0.1267,4150.0,4149.6,0.248]
[1758596050517,0.5533,4149.7,4149.6,0.4519]
[1758596050814,0.3367,4149.9,4149.6,0.248]
[1758596051019,3.2078,4150.3,4149.6,0.248]
[1758596051020,3.5445,4150.3,4150.2,0.8471]
[1758596051212,1.383093,4150.3,4150.2,0.248]
[1758596051819,1.383093,4150.3,4150.2,0.6813]
[1758596052018,1.173693,4150.3,4150.2,1.0951]
[1758596052318,0.7627,4150.3,4150.2,0.6618]
[1758596052816,0.7627,4150.3,4150.2,0.4519]
[1758596053113,0.43332,4150.1,4149.6,0.43336]
[1758596053418,0.5533,4149.7,4149.6,0.63726]
[1758596053620,0.5533,4149.7,4149.6,0.88526]
[1758596054229,0.7627,4149.7,4149.6,0.248]
[1758596055017,0.4634,4150.0,4149.6,0.6618]
[1758596055216,0.4634,4150.0,4149.9,0.84714]
[1758596055519,0.68,4150.0,4149.9,1.09514]
[1758596056220,3.2078,4150.3,4150.2,0.4362]
[1758596056424,0.1267,4150.5,4150.2,0.6842]
[1758596056616,0.2225,4150.3,4150.2,0.6842]
[1758596056817,0.5385,4150.3,4150.2,0.6842]
[1758596058018,0.7516,4150.3,4150.2,0.6842]
[1758596058213,0.7516,4150.3,4150.2,0.4682]
[1758596058618,0.7516,4150.3,4150.2,0.248]
[1758596058817,1.1849,4150.3,4150.2,0.248]
[1758596059120,0.7516,4150.3,4150.2,0.247]
[1758596059321,0.97904876,4150.3,4150.2,0.247]
[1758596062121,0.97904876,4150.3,4150.2,0.6832]
[1758596062920,0.22744876,4150.3,4150.2,0.8208]
[1758596063218,0.4427,4150.5,4150.4,0.5738]
[1758596063423,0.67012355,4150.5,4150.4,41.3738]
[1758596064022,0.67012355,4150.5,4150.4,41.2362]
[1758596064227,0.5385,4150.7,4150.6,0.4362]
[1758596064418,0.97898811,4150.7,4150.6,0.6832]
[1758596065122,0.44048811,4150.7,4150.6,0.6832]
[1758596065316,0.4356,4150.8,4150.7,0.3071]
[1758596065517,0.86887,4150.6,4150.4,40.8]
[1758596065714,2.18678811,4150.9,4150.0,3.3353]
[1758596065715,0.4356,4150.2,4150.0,3.2078]
[1758596065918,0.4356,4149.6,4149.5,0.5283]
[1758596066118,0.4356,4149.6,4149.4,3.2078]
[1758596066326,0.4356,4149.6,4149.5,0.247]
[1758596067224,0.7516,4149.6,4149.5,0.247]
[1758596067931,0.7516,4149.3,4148.0,0.1275]
[1758596068131,0.74951,4148.3,4148.0,0.3071]
[1758596068329,0.7516,4148.0,4147.9,0.33120888]
[1758596068651,0.7516,4148.0,4147.9,41.37920888]
[1758596069020,0.4356,4148.0,4147.9,41.13120888]
[1758596069220,0.4356,4148.0,4147.9,41.37920888]
[1758596069823,0.4356,4148.3,4148.2,0.5283]
[1758596070024,0.7516,4148.3,4148.2,0.7763]
[1758596070326,0.7516,4148.3,4147.9,40.82410888]
[1758596070327,0.4243,4148.0,4147.9,40.82410888]
[1758596070527,0.7339,4148.0,4147.9,41.07210888]
[1758596070724,3.95088,4148.6,4148.0,0.55503]
[1758596070928,3.95088,4148.6,4148.1,0.3344]
[1758596071124,0.2036,4148.3,4148.2,0.4715]
[1758596071325,0.7339,4148.3,4148.2,0.248]
[1758596071629,0.7339,4148.3,4148.2,0.6843]
[1758596071630,0.4243,4148.3,4148.2,0.6843]
[1758596071818,3.5174,4148.6,4148.3,0.3344]
[1758596072130,0.7339,4148.4,4148.3,0.5579]
[1758596073126,0.7339,4148.4,4148.3,0.3344]
[1758596073433,0.2036,4148.4,4148.3,0.7707]
[1758596073623,0.4243,4148.4,4148.3,0.7707]
[1758596073933,0.7339,4148.4,4148.3,0.7707]
[1758596074129,0.7339,4148.4,4148.3,0.5579]
[1758596074428,0.7339,4148.3,4148.2,0.248]
[1758596074638,0.4243,4148.3,4148.2,1.0187]
[1758596075117,0.7339,4148.3,4148.2,1.0187]
[1758596075318,0.4243,4148.3,4148.2,1.0187]
[1758596075528,0.2036,4148.3,4148.2,1.0187]
[1758596075829,0.2036,4148.4,4148.3,0.7707]
[1758596076623,0.4243,4148.4,4148.3,0.7707]
[1758596077420,0.3096,4147.9,4147.7,3.64136]
[1758596077623,0.3096,4147.9,4147.8,0.247]
[1758596077833,0.7339,4147.9,4147.8,0.247]
[1758596078332,0.7339,4147.9,4147.8,41.047]
[1758596080623,0.5132,4147.9,4147.8,41.047]
[1758596081027,0.3096,4147.9,4147.8,41.047]
[1758596081828,0.74311,4148.3,4147.9,0.43354]
[1758596082030,0.3096,4148.2,4148.0,0.247]
[1758596082243,0.5132,4148.1,4148.0,0.247]
[1758596082533,0.7339,4148.1,4148.0,0.247]
[1758596083236,0.3096,4148.1,4148.0,0.247]
[1758596083639,0.7339,4148.1,4148.0,0.247]
[1758596084927,0.3096,4148.1,4148.0,0.247]
[1758596085130,0.5132,4148.1,4148.0,0.247]
[1758596085330,0.7339,4148.1,4148.0,0.247]
[1758596086526,0.5132,4148.1,4148.0,0.247]
[1758596086725,0.43339,4149.4,4148.8,0.43344]
[1758596086934,0.4334,4149.3,4148.9,0.247]
[1758596087231,3.2078,4149.8,4148.9,41.047]
[1758596087232,0.8606,4149.0,4148.9,41.047]
[1758596087932,0.4363,4149.0,4148.9,41.047]
[1758596088135,0.4363,4149.0,4148.9,40.8]
[1758596088434,4.8606,4149.0,4148.9,0.247]
[1758596088740,5.0821389,4149.0,4148.9,0.247]
[1758596089632,0.7339,4148.4,4148.3,3.2078]
[1758596089832,0.7339,4148.4,4148.3,3.4548]
[1758596090338,1.16739,4148.4,4148.3,0.247]
[1758596090733,1.16739,4148.4,4147.9,40.8]
[1758596090734,0.3322,4148.0,4147.9,40.8]
[1758596090930,0.6418,4148.0,4147.9,41.047]
[1758596091337,0.6418,4148.0,4146.0,3.0167621]
[1758596091338,9.1751532,4148.0,4146.7,3.2078]
[1758596091532,0.6418,4147.0,4146.9,0.5123]
[1758596091838,0.3096,4147.0,4146.9,0.7564]
[1758596092036,0.6418,4147.5,4147.4,0.4363]
[1758596092242,0.3096,4147.5,4147.4,4.1382]
[1758596092537,0.1286,4148.0,4147.4,4.1382]
[1758596092736,0.5132,4147.8,4147.7,0.4363]
[1758596092941,0.6418,4147.5,4147.4,0.4363]
[1758596093139,0.8625,4147.5,4147.4,0.25]
[1758596093339,0.2036,4146.7,4146.6,0.7707]
[1758596093539,0.95563218,4146.7,4146.6,0.4735]
[1758596094036,0.7339,4146.7,4146.6,1.0207]
[1758596094340,0.7339,4146.7,4146.6,0.6863]
[1758596094642,0.3096,4147.0,4146.9,0.4363]
[1758596094845,0.21462226,4147.0,4146.9,1.0207]
[1758596095140,0.3096,4147.5,4147.4,0.4363]
[1758596095344,1.07713164,4147.5,4147.4,0.25]
[1758596095731,0.5132,4146.5,4146.4,3.9785]
[1758596095936,0.2036,4147.2,4147.1,0.4363]
[1758596096133,0.7339,4147.2,4146.5,0.1215]
[1758596096334,3.2078,4147.0,4146.9,0.4363]
[1758596096533,0.41841339,4147.0,4146.9,0.7707]
[1758596096733,0.3096,4147.4,4147.0,0.1215]
[1758596096934,0.5132,4147.4,4147.3,0.7707]
[1758596097139,0.21481726,4147.4,4147.3,0.7707]
[1758596097540,0.21481726,4147.4,4147.1,0.252]
[1758596097541,0.94871726,4147.4,4147.1,0.252]
[1758596097743,0.4243,4147.2,4146.8,0.3344]
[1758596097934,0.94871726,4147.1,4146.9,0.252]
[1758596098241,3.3364,4147.5,4146.4,0.2235]
[1758596098242,0.3096,4146.5,4146.4,0.2235]
[1758596098448,4.28507262,4146.5,4146.4,0.2235]
[1758596098658,4.15647262,4146.5,4146.4,0.7707]
[1758596098843,0.21477262,4146.5,4146.4,0.7707]
[1758596099037,3.646,4147.5,4147.0,0.3344]
[1758596099239,0.4243,4147.1,4146.9,0.254]
[1758596099442,0.94865659,4147.0,4146.9,1.0247]
[1758596099642,0.41835659,4147.0,4146.9,1.0247]
[1758596099843,0.21475659,4147.0,4146.9,1.0247]
[1758596100850,4.59649659,4147.0,4146.9,0.2205]
[1758596101043,0.7606,4146.8,4146.7,0.7966]
[1758596101247,0.43389,4144.6,4144.3,3.0167621]
[1758596101441,0.3162,4144.4,4143.6,0.3221]
[1758596101643,0.21429755,4144.3,4143.6,0.3221]
[1758596101941,0.21429755,4144.3,4143.0,3.2078]
[1758596101942,0.43399,4143.6,4143.0,3.2078]
[1758596102148,0.3162,4142.9,4141.8,0.3221]
[1758596102446,3.2078,4142.5,4141.8,0.3221]
[1758596102643,3.2078,4143.0,4142.2,0.3221]
[1758596102843,0.2359161,4142.9,4142.5,0.1242]
[1758596103046,3.2078,4143.0,4142.5,0.1242]
[1758596103243,3.2078,4143.0,4142.6,0.3221]
[1758596103440,3.2078,4143.6,4142.7,0.3221]
[1758596103649,3.2078,4143.1,4142.7,0.3221]
[1758596103945,3.2078,4143.9,4143.1,0.3221]
[1758596104251,3.2078,4143.9,4143.5,0.1242]
[1758596104547,3.2078,4143.9,4143.6,0.3221]
[1758596104746,3.2078,4143.9,4143.8,0.3221]
[1758596105152,0.43389,4144.6,4143.8,0.3221]
[1758596105153,3.2078,4144.6,4144.0,0.1242]
[1758596105344,3.2078,4144.6,4144.2,0.43393]
[1758596105537,3.2078,4144.6,4144.4,0.3221]
[1758596105849,3.2078,4144.6,4144.3,0.254]
[1758596106241,3.2078,4144.6,4144.4,0.3221]
[1758596106441,3.2078,4144.6,4144.3,0.254]
[1758596106645,3.524,4145.9,4144.6,0.3221]
[1758596106940,3.524,4145.9,4145.1,0.3221]
[1758596107138,0.23485544,4145.8,4145.2,0.254]
[1758596107342,0.3162,4145.5,4145.2,0.254]
[1758596107543,0.3162,4145.8,4145.2,0.254]
[1758596107750,0.73371205,4145.8,4145.2,0.254]
[1758596107950,0.23478801,4145.7,4145.2,0.254]
[1758596108148,3.2078,4145.4,4145.2,0.254]
[1758596108544,3.2078,4145.9,4145.3,0.3221]
[1758596108743,0.1325,4146.5,4145.6,0.3221]
[1758596108744,3.2078,4146.4,4145.6,0.3221]
[1758596109050,3.2078,4145.8,4145.4,0.254]
[1758596109247,3.2078,4145.8,4144.2,43.64786865]
[1758596109248,0.1325,4145.5,4144.5,0.75599]
[1758596109446,3.2078,4145.2,4144.6,0.254]
[1758596109751,0.43387,4144.9,4144.7,40.8]
[1758596109938,0.3162,4144.2,4143.7,3.2078]
[1758596110141,0.43396,4144.0,4143.7,3.4618]
[1758596110349,0.3162,4144.3,4143.9,0.3221]
[1758596110552,0.3162,4144.9,4144.3,0.3221]
[1758596110747,3.2078,4145.0,4144.4,0.254]
[1758596111045,3.3403,4145.0,4144.4,0.254]
[1758596111445,3.6565,4145.0,4144.4,0.254]
[1758596111747,0.3162,4144.6,4144.4,0.254]
[1758596112045,3.3403,4145.0,4144.4,0.254]
[1758596112243,0.24392302,4144.9,4144.4,0.254]
[1758596112439,3.2078,4145.0,4144.6,0.3221]
[1758596112638,3.2078,4145.0,4144.4,0.5761]
[1758596112841,0.3162,4144.7,4144.4,0.5761]
[1758596113045,0.43388,4144.8,4144.4,0.254]
[1758596113547,3.2078,4145.0,4144.5,0.4339]
[1758596113746,3.2078,4145.0,4144.8,0.3221]
[1758596113945,3.2078,4145.6,4144.9,0.254]
[1758596114251,0.24389156,4145.5,4145.2,0.3221]
[1758596114451,0.3162,4145.9,4145.3,3.2078]
[1758596114750,0.3162,4145.7,4145.4,0.5761]
[1758596114942,0.3162,4145.2,4144.6,3.2078]
[1758596115144,0.3233,4145.4,4144.9,0.254]
[1758596115442,0.3233,4145.2,4144.9,0.254]
[1758596115641,0.1308,4145.0,4144.4,39.067]
[1758596115843,0.3233,4144.6,4144.5,0.254]
[1758596116042,0.3233,4144.2,4143.8,3.2078]
[1758596116250,0.43393,4144.3,4143.9,0.254]
[1758596116445,0.3233,4144.0,4143.9,0.254]
[1758596116648,0.3233,4144.4,4144.1,0.3205]
[1758596116849,0.24399524,4144.3,4143.9,41.054]
[1758596117050,0.1308,4144.5,4144.0,0.3205]
[1758596117255,0.3233,4144.0,4143.9,41.054]
[1758596117449,3.2078,4144.1,4143.9,41.054]
[1758596117654,3.2078,4144.1,4144.0,0.3205]
[1758596118455,0.3233,4144.6,4144.0,0.3205]
[1758596118654,0.1308,4145.0,4144.0,0.3205]
[1758596118655,0.24427369,4144.5,4144.4,0.3205]
[1758596118951,0.1308,4144.0,4143.2,0.3205]
[1758596119151,0.1308,4144.0,4142.5,3.2078]
[1758596119152,0.4541,4143.0,4142.5,3.2078]
[1758596119458,0.3233,4142.4,4142.1,0.254]
[1758596119747,0.24430396,4142.3,4142.1,0.254]
[1758596119941,0.43412,4142.5,4142.2,0.3205]
[1758596120148,0.43416,4142.1,4141.4,3.2078]
[1758596120350,0.24430359,4142.0,4141.5,0.255]
[1758596120549,0.3233,4142.2,4141.6,40.8]
[1758596120753,0.24430675,4142.1,4141.7,0.3205]
[1758596120957,3.2078,4142.3,4141.6,40.8]
[1758596120958,0.24430675,4142.0,4141.9,0.75467]
[1758596121162,0.3233,4142.6,4142.2,0.3205]
[1758596121454,0.24416039,4142.5,4142.3,0.5755]
[1758596121655,0.24416039,4142.4,4142.3,1.00962]
[1758596121954,0.3233,4142.4,4142.3,0.255]
[1758596122258,0.24416039,4142.4,4142.2,0.255]
[1758596122449,0.3233,4142.7,4142.3,0.5765]
[1758596122751,0.56759364,4142.6,4142.3,0.5765]
[1758596123057,0.24429364,4142.5,4142.4,0.3205]
[1758596123259,0.3233,4142.4,4142.1,0.75464]
[1758596123556,0.24429364,4142.3,4142.2,0.5765]
[1758596124550,3.2078,4142.8,4142.2,0.5765]
[1758596124857,0.2443198,4142.7,4142.6,0.3205]
[1758596125053,0.2443198,4142.7,4142.6,0.5755]
[1758596126555,0.2443198,4142.7,4142.6,41.3755]
[1758596126759,0.5676198,4142.7,4142.6,40.8]
[1758596126954,4.87988913,4142.7,4142.6,40.8]
[1758596127254,0.91469913,4142.7,4142.6,0.255]
[1758596127451,0.91469913,4142.7,4142.6,0.5755]
[1758596127651,0.2443198,4142.7,4142.6,41.3755]
[1758596128058,0.3233,4144.9,4142.7,13.02258]
[1758596128262,0.67076526,4144.8,4144.7,0.75438]
[1758596128561,0.3233,4145.3,4144.7,1.01038]
[1758596128762,0.3233,4145.1,4145.0,0.43385]
[1758596128959,3.2078,4145.1,4144.5,3.2078]
[1758596129163,0.3233,4144.9,4144.7,0.43388]
[1758596129654,3.2078,4145.1,4144.9,0.43386]
[1758596129959,3.5311,4145.1,4145.0,0.257]
[1758596130163,0.43379,4145.6,4145.0,0.257]
[1758596130164,0.3233,4145.4,4145.3,0.43381]
[1758596130455,0.3106,4146.1,4145.5,0.75429]
[1758596130758,0.3106,4145.9,4145.6,0.69077]
[1758596130953,3.2078,4146.2,4145.6,0.257]
[1758596131165,0.94019953,4146.1,4145.7,40.8]
[1758596131355,3.5184,4145.8,4145.7,40.8]